bitfinex-derivatives/quotes_SOLF0:USTF0_20250425
["timestamp","ask_amount","ask_price","bid_price","bid_amount"]
[1745604978477,502.02,151.2,151.13,1.8799]
[1745604978984,25.52,151.2,151.19,6.6107]
[1745604979287,25.52,151.23,151.19,6.6107]
[1745604979500,6.6096,151.22,151.19,6.6107]
[1745604980879,6.6099,151.21,151.18,6.611]
[1745604981187,14.10660714,151.2,151.13,1.8799]
[1745604981383,14.10660714,151.18,151.13,1.8799]
[1745604981681,39.62660714,151.18,151.11,4.065]
[1745604982184,6.6125,151.15,151.12,6.6137]
[1745604982380,39.62660714,151.18,151.12,6.6137]
[1745604982580,6.612,151.17,151.12,6.6137]
[1745604983082,6.612,151.17,151.13,6.6133]
[1745604983284,6.612,151.17,151.11,4.065]
[1745604983780,46.23790714,151.18,151.14,6.6128]
[1745604983983,39.62660714,151.18,151.11,4.065]
[1745604984384,46.23800714,151.18,151.14,6.6127]
[1745604985184,46.23800714,151.18,151.15,6.6124]
[1745604986683,39.62660714,151.18,151.16,6.612]
[1745604987282,25.52,151.18,151.16,6.612]
[1745604987480,25.52,151.18,151.12,1.982]
[1745604987481,25.52,151.18,151.17,6.6116]
[1745604990086,25.52,151.18,151.16,6.6118]
[1745604992585,25.52,151.18,151.17,6.6116]
[1745604993587,6.6105,151.2,151.17,6.6116]
[1745604995089,6.6105,151.2,151.13,14.10660714]
[1745604995090,25.48,151.21,151.13,39.58660714]
[1745604995682,32.0901,151.21,151.18,6.6109]
[1745604997293,41.11442407,151.21,151.18,6.6109]
[1745604997997,25.48,151.21,151.19,6.6103]
[1745604998994,25.48,151.21,151.2,6.6103]
[1745604999201,25.48,151.24,151.19,9.02432407]
[1745604999495,34.50432407,151.24,151.19,9.02432407]
[1745604999697,41.11292407,151.24,151.21,6.6095]
[1745604999898,25.48,151.24,151.21,9.02432407]
[1745605000093,0.23706,151.26,151.23,9.02432407]
[1745605000305,6.84496,151.26,151.23,15.63292407]
[1745605000500,0.23706,151.26,151.23,9.02432407]
[1745605000802,0.23706,151.26,151.24,6.6085]
[1745605001808,0.23706,151.26,151.18,5.9352]
[1745605001809,0.23706,151.26,151.25,6.6081]
[1745605005409,14.08828199,151.33,151.29,6.6061]
[1745605005609,14.08828199,151.33,151.24,14.08828199]
[1745605005804,14.08828199,151.33,151.25,2.0817]
[1745605006307,14.08828199,151.33,151.29,6.6062]
[1745605006503,501.6,151.34,151.25,2.0817]
[1745605006708,14.08828199,151.29,151.21,25.48]
[1745605006908,6.6076,151.27,151.21,25.48]
[1745605007110,14.08828199,151.29,151.21,25.48]
[1745605007506,6.6074,151.27,151.24,6.6081]
[1745605008311,6.6077,151.26,151.24,6.6081]
[1745605008510,14.08828199,151.29,151.21,25.48]
[1745605008707,6.608,151.26,151.21,25.48]
[1745605009012,6.608,151.26,151.23,6.6086]
[1745605009212,14.08828199,151.29,151.21,25.48]
[1745605009903,6.6075,151.27,151.21,25.48]
[1745605010109,6.6075,151.27,151.24,6.6082]
[1745605010310,6.6075,151.27,151.21,25.48]
[1745605010611,6.6075,151.27,151.24,6.6082]
[1745605011010,6.6072,151.27,151.21,25.48]
[1745605011511,6.6072,151.27,151.24,6.6083]
[1745605011808,6.607,151.28,151.21,25.48]
[1745605012309,6.607,151.28,151.25,6.6078]
[1745605013514,6.6072,151.27,151.24,6.6084]
[1745605014314,6.6072,151.27,151.25,6.6081]
[1745605015513,6.607,151.28,151.25,6.6081]
[1745605015912,6.607,151.28,151.26,6.6076]
[1745605016108,6.6074,151.27,151.21,25.48]
[1745605016412,14.08828199,151.29,151.25,6.608]
[1745605016707,6.607,151.28,151.25,6.608]
[1745605016912,6.607,151.28,151.21,25.48]
[1745605016913,6.607,151.28,151.26,6.6076]
[1745605017114,20.69488199,151.29,151.26,6.6076]
[1745605017413,14.08828199,151.29,151.26,6.6076]
[1745605017613,14.08828199,151.29,151.25,6.6079]
[1745605017814,6.607,151.28,151.21,25.48]
[1745605018112,14.08828199,151.29,151.27,6.6069]
[1745605019414,20.69468199,151.29,151.27,6.6069]
[1745605019612,20.69468199,151.29,151.26,6.6074]
[1745605019814,14.08828199,151.29,151.26,6.6074]
[1745605020216,14.08828199,151.29,151.28,6.6068]
[1745605020513,25.46,151.3,151.22,14.08828199]
[1745605021315,32.0661,151.3,151.27,6.6068]
[1745605023113,32.0661,151.3,151.28,6.6068]
[1745605023317,32.0661,151.3,151.22,14.08828199]
[1745605023619,9.0147978,151.28,151.27,6.6069]
[1745605024819,9.0147978,151.28,151.26,6.6075]
[1745605025120,9.0147978,151.28,151.23,9.0147978]
[1745605025320,9.0147978,151.28,151.24,9.0147978]
[1745605026320,9.0147978,151.28,151.27,6.6072]
[1745605026921,9.0147978,151.29,151.27,6.6072]
[1745605027319,9.0147978,151.31,151.26,9.0147978]
[1745605027623,9.0147978,151.3,151.26,9.0147978]
[1745605027828,9.0147978,151.3,151.28,6.6065]
[1745605028219,15.6210978,151.3,151.27,6.607]
[1745605028819,6.6052,151.32,151.27,9.0147978]
[1745605029026,34.4547978,151.33,151.27,9.0147978]
[1745605029427,6.6054,151.32,151.29,6.6061]
[1745605029821,34.4547978,151.33,151.27,12.8706978]
[1745605030027,32.0448,151.33,151.3,6.6057]
[1745605030223,25.44,151.33,151.29,9.0147978]
[1745605030528,15.6199978,151.32,151.29,6.6061]
[1745605031033,15.6199978,151.32,151.3,6.6059]
[1745605031326,9.0147978,151.32,151.3,6.6059]
[1745605031828,25.44,151.33,151.3,6.6059]
[1745605032023,9.0147978,151.32,151.3,6.6059]
[1745605035829,15.6199978,151.32,151.3,6.6059]
[1745605036029,9.0147978,151.32,151.29,6.6063]
[1745605036520,9.0147978,151.32,151.29,6.6061]
[1745605036824,15.6200978,151.32,151.29,6.6061]
[1745605037731,15.6200978,151.32,151.3,6.6059]
[1745605037930,15.6200978,151.32,151.27,12.8706978]
[1745605038131,6.6055,151.31,151.27,12.8706978]
[1745605038428,9.0147978,151.3,151.28,6.6064]
[1745605040230,9.0147978,151.29,151.26,6.6074]
[1745605040531,9.0147978,151.27,151.21,3.8751]
[1745605040724,9.0147978,151.25,151.22,6.609]
[1745605040926,9.0147978,151.25,151.21,3.8751]
[1745605041126,9.0147978,151.23,151.21,3.8751]
[1745605042235,9.0147978,151.23,151.22,6.609]
[1745605042533,6.6083,151.25,151.22,6.609]
[1745605042729,9.0147978,151.23,151.22,6.609]
[1745605046137,9.0147978,151.24,151.23,6.6088]
[1745605047431,9.0147978,151.25,151.23,6.6088]
[1745605047638,9.0147978,151.25,151.24,6.6085]
[1745605047937,9.0147978,151.27,151.22,9.0147978]
[1745605048134,9.0147978,151.27,151.26,6.6076]
[1745605048438,9.0147978,151.27,151.23,9.0147978]
[1745605048639,9.0147978,151.27,151.25,6.6079]
[1745605049841,9.0147978,151.27,151.26,6.6076]
[1745605051042,9.0147978,151.3,151.25,9.0147978]
[1745605051637,9.0147978,151.3,151.28,6.6064]
[1745605051939,9.0147978,151.3,151.25,9.0147978]
[1745605052136,34.4547978,151.32,151.27,9.0147978]
[1745605052341,9.0147978,151.32,151.28,11.0443978]
[1745605052640,9.0147978,151.33,151.28,11.0443978]
[1745605052838,9.0147978,151.34,151.28,11.0443978]
[1745605053036,9.0147978,151.34,151.3,9.0147978]
[1745605053337,9.0147978,151.34,151.32,6.6046]
[1745605055541,15.6189978,151.34,151.32,6.6046]
[1745605055739,9.0147978,151.33,151.32,6.6046]
[1745605056139,9.0147978,151.34,151.32,6.6046]
[1745605056438,9.0147978,151.34,151.29,11.1008978]
[1745605056742,9.0147978,151.34,151.32,6.6048]
[1745605057638,34.4547978,151.35,151.3,9.0147978]
[1745605057840,9.0147978,151.37,151.32,9.0147978]
[1745605058040,25.4,151.38,151.32,9.0147978]
[1745605058542,34.4147978,151.38,151.33,9.0147978]
[1745605058743,34.4147978,151.38,151.34,9.0147978]
[1745605059043,34.4147978,151.38,151.37,6.6028]
[1745605059243,25.4,151.38,151.37,6.6028]
[1745605060141,25.4,151.38,151.36,6.6031]
[1745605060342,34.4147978,151.38,151.33,9.0147978]
[1745605060542,9.0147978,151.34,151.32,6.6048]
[1745605060844,9.0147978,151.33,151.29,2.0861]
[1745605061040,9.0147978,151.31,151.29,2.0861]
[1745605061342,9.0147978,151.3,151.28,2.0296]
[1745605061738,9.0147978,151.3,151.28,8.636]
[1745605063341,20.68745244,151.32,151.29,6.6063]
[1745605064243,14.08215244,151.32,151.3,6.6059]
[1745605064843,20.68725244,151.32,151.29,6.606]
[1745605065142,25.4,151.33,151.28,2.0296]
[1745605065343,32.0046,151.33,151.3,6.6056]
[1745605066145,32.0046,151.33,151.31,6.6054]
[1745605066341,25.4,151.33,151.31,6.6054]
[1745605067644,25.4,151.33,151.32,6.605]
[1745605068045,25.4,151.33,151.28,2.0296]
[1745605068344,20.68635244,151.34,151.31,6.6052]
[1745605071447,14.08215244,151.34,151.32,6.6048]
[1745605071648,14.08215244,151.34,151.28,2.0296]
[1745605071950,14.08215244,151.34,151.32,6.6049]
[1745605073348,20.68635244,151.34,151.32,6.6049]
[1745605073849,20.68635244,151.34,151.31,6.6052]
[1745605074351,6.6039,151.35,151.28,2.0296]
[1745605074550,6.6039,151.35,151.32,6.605]
[1745605078052,6.6043,151.34,151.31,6.6052]
[1745605078253,6.6043,151.34,151.29,2.072]
[1745605079253,6.6043,151.34,151.32,6.605]
[1745605079561,6.6038,151.35,151.29,2.072]
[1745605079751,25.4,151.36,151.32,6.6049]
[1745605080154,6.604,151.35,151.32,6.6049]
[1745605080355,14.08215244,151.35,151.31,6.6052]
[1745605080653,6.6042,151.34,151.31,6.6052]
[1745605080854,6.6042,151.34,151.29,2.072]
[1745605081051,14.08215244,151.35,151.32,6.605]
[1745605081353,20.68605244,151.35,151.32,6.605]
[1745605083458,32.0034,151.36,151.33,6.6044]
[1745605084756,32.0034,151.36,151.34,6.6041]
[1745605084959,25.4,151.36,151.34,6.6041]
[1745605085352,41.00980807,151.36,151.33,6.6044]
[1745605085557,41.00980807,151.36,151.31,9.00620807]
[1745605085856,41.00980807,151.36,151.34,6.6041]
[1745605086052,41.00980807,151.36,151.31,9.00620807]
[1745605086459,41.00980807,151.36,151.33,6.6043]
[1745605090063,34.40620807,151.36,151.34,6.6041]
[1745605090751,41.00960807,151.36,151.34,6.6041]
[1745605090952,34.40620807,151.36,151.34,6.6041]
[1745605091161,25.36,151.39,151.35,6.6035]
[1745605091461,25.36,151.39,151.31,9.00620807]
[1745605091462,9.00620807,151.36,151.31,25.36]
[1745605091657,15.60970807,151.36,151.3,9.00620807]
[1745605091956,15.60970807,151.36,151.32,6.6046]
[1745605092756,9.00620807,151.34,151.32,6.6046]
[1745605092961,9.00620807,151.34,151.33,6.6046]
[1745605093163,6.6035,151.36,151.3,9.00620807]
[1745605093363,15.60970807,151.36,151.3,9.00620807]
[1745605093562,15.60970807,151.36,151.32,6.6048]
[1745605093862,15.60970807,151.36,151.3,9.00620807]
[1745605094063,15.60970807,151.36,151.32,6.6047]
[1745605094263,6.6037,151.35,151.32,6.6047]
[1745605095358,9.00620807,151.36,151.3,9.00620807]
[1745605095561,9.00620807,151.36,151.32,9.00620807]
[1745605095966,9.00620807,151.36,151.33,6.6043]
[1745605096465,9.00620807,151.38,151.32,9.00620807]
[1745605096770,34.36620807,151.39,151.34,9.00620807]
[1745605096964,6.6028,151.38,151.35,6.6035]
[1745605097166,9.00620807,151.37,151.34,9.00620807]
[1745605097671,15.60930807,151.37,151.34,15.61010807]
[1745605097864,9.00620807,151.37,151.31,9.00620807]
[1745605098265,6.6039,151.35,151.32,6.6047]
[1745605098468,9.00620807,151.37,151.31,9.00620807]
[1745605098772,6.6038,151.35,151.32,6.6046]
[1745605098968,9.00620807,151.35,151.31,9.00620807]
[1745605099174,25.36,151.39,151.31,9.00620807]
[1745605099377,15.60990807,151.36,151.31,9.00620807]
[1745605099774,9.00620807,151.38,151.31,9.00620807]
[1745605099973,9.00620807,151.38,151.33,9.00620807]
[1745605100473,6.6031,151.37,151.34,6.6039]
[1745605100772,9.00620807,151.38,151.33,9.00620807]
[1745605101673,15.60880807,151.38,151.35,6.6034]
[1745605102175,15.60880807,151.38,151.36,6.6033]
[1745605102475,9.00620807,151.38,151.33,9.00620807]
[1745605103071,9.00620807,151.38,151.34,6.6039]
[1745605103270,9.00620807,151.38,151.33,9.00620807]
[1745605103577,6.6031,151.37,151.34,6.6037]
[1745605104179,15.60880807,151.38,151.35,6.6037]
[1745605105283,6.6026,151.38,151.35,6.6037]
[1745605105585,40.96840807,151.39,151.33,9.00620807]
[1745605105879,34.36620807,151.39,151.33,9.00620807]
[1745605106079,40.96840807,151.39,151.36,6.6033]
[1745605108486,34.36620807,151.39,151.33,10.91950807]
[1745605108685,25.36,151.39,151.35,9.00620807]
[1745605109086,25.36,151.39,151.37,15.60890807]
[1745605109886,6.6018,151.4,151.37,15.60890807]
[1745605110286,34.36620807,151.42,151.37,15.60890807]
[1745605110489,6.6019,151.4,151.37,15.60890807]
[1745605110888,15.60810807,151.4,151.37,6.6027]
[1745605111388,34.36620807,151.42,151.36,9.00620807]
[1745605111577,25.36,151.42,151.36,9.00620807]
[1745605111777,34.36620807,151.42,151.36,9.00620807]
[1745605111984,40.96710807,151.42,151.37,9.00620807]
[1745605112489,40.96710807,151.42,151.39,6.6017]
[1745605113487,34.36620807,151.42,151.37,9.00620807]
[1745605113685,34.36620807,151.42,151.38,9.00620807]
[1745605113886,501.08,151.46,151.4,9.00620807]
[1745605114088,15.60620807,151.44,151.41,6.6008]
[1745605114289,6.6,151.44,151.41,6.6008]
[1745605114885,501.08,151.46,151.41,9.00620807]
[1745605115089,510.08620807,151.46,151.41,9.00620807]
[1745605115289,9.00620807,151.45,151.4,9.00620807]
[1745605115489,15.60590807,151.45,151.42,6.6005]
[1745605116686,9.00620807,151.44,151.39,9.00620807]
[1745605117088,9.00620807,151.44,151.4,6.6015]
[1745605117388,6.6005,151.43,151.4,6.6015]
[1745605117986,9.00620807,151.41,151.36,25.34]
[1745605118186,9.00620807,151.41,151.37,9.00620807]
[1745605119093,15.60760807,151.41,151.38,6.6022]
[1745605120291,15.60760807,151.41,151.37,9.00620807]
[1745605120292,15.60760807,151.41,151.39,6.6019]
[1745605120793,15.60760807,151.41,151.37,9.00620807]
[1745605120990,15.60760807,151.41,151.38,6.6022]
[1745605122693,9.00620807,151.41,151.36,25.34]
[1745605122893,9.00620807,151.41,151.35,10.91890807]
[1745605123292,6.6018,151.4,151.37,6.6026]
[1745605123592,9.00620807,151.39,151.37,6.6026]
[1745605124293,15.60830807,151.39,151.37,6.6026]
[1745605124492,9.00620807,151.39,151.37,6.6026]
[1745605126096,9.00620807,151.39,151.38,6.6024]
[1745605127398,9.00620807,151.39,151.37,6.6026]
[1745605127796,9.00620807,151.39,151.35,10.91890807]
[1745605128092,9.00620807,151.39,151.37,6.6026]
[1745605128298,9.00620807,151.38,151.37,6.6026]
[1745605129302,9.00620807,151.41,151.35,9.00620807]
[1745605129799,15.60760807,151.41,151.38,6.6021]
[1745605130001,9.00620807,151.4,151.38,6.6021]
[1745605130500,9.00620807,151.4,151.39,6.602]
[1745605131604,9.00620807,151.41,151.4,6.6014]
[1745605131902,9.00620807,151.41,151.37,9.00620807]
[1745605132102,9.00620807,151.41,151.39,6.6017]
[1745605132796,9.00620807,151.41,151.4,6.6015]
[1745605133300,9.00620807,151.41,151.39,6.6017]
[1745605138404,15.60730807,151.41,151.39,6.6017]
[1745605138703,15.60730807,151.41,151.38,6.6022]
[1745605140505,6.6017,151.4,151.38,6.6022]
[1745605140706,9.00620807,151.39,151.34,1.9772]
[1745605140907,9.00620807,151.37,151.34,1.9772]
[1745605141106,15.60990807,151.36,151.34,1.9772]
[1745605141299,9.00620807,151.35,151.33,1.9133]
[1745605141609,15.61020807,151.35,151.33,1.9133]
[1745605141804,9.00620807,151.34,151.3,25.32]
[1745605142309,9.00620807,151.34,151.32,6.6047]
[1745605142911,9.00620807,151.34,151.3,25.32]
[1745605143913,9.00620807,151.34,151.3,34.32620807]
[1745605144109,9.00620807,151.34,151.31,6.6054]
[1745605144314,9.00620807,151.34,151.3,34.32620807]
[1745605144518,9.00620807,151.36,151.31,9.00620807]
[1745605144714,25.32,151.37,151.33,9.00620807]
[1745605145015,9.00620807,151.44,151.36,9.00620807]
[1745605145312,9.00620807,151.44,151.39,9.00620807]
[1745605145708,15.60600807,151.44,151.39,9.00620807]
[1745605146309,9.00620807,151.44,151.42,6.6006]
[1745605146616,9.00620807,151.44,151.39,9.00620807]
[1745605146811,9.00620807,151.47,151.42,9.00620807]
[1745605148018,9.00620807,151.45,151.41,9.00620807]
[1745605149018,9.00620807,151.45,151.4,34.30620807]
[1745605149219,9.00620807,151.44,151.4,25.3]
[1745605149418,9.00620807,151.43,151.39,9.00620807]
[1745605150824,9.00620807,151.43,151.41,6.6009]
[1745605151931,9.00620807,151.43,151.42,6.6007]
[1745605152427,25.3,151.49,151.44,6.5998]
[1745605152628,9.00620807,151.46,151.41,9.00620807]
[1745605152930,15.60540807,151.46,151.43,6.6]
[1745605153233,9.00620807,151.45,151.4,9.00620807]
[1745605153422,15.60580807,151.45,151.42,6.6005]
[1745605153626,15.60580807,151.45,151.4,9.00620807]
[1745605154031,9.00620807,151.45,151.43,6.6001]
[1745605155631,9.00620807,151.45,151.43,6.5999]
[1745605155932,9.00620807,151.45,151.41,9.00620807]
[1745605156326,9.00620807,151.45,151.43,6.6]
[1745605158835,9.00620807,151.45,151.44,6.5998]
[1745605160337,9.00620807,151.45,151.37,29.2883]
[1745605160533,9.00620807,151.43,151.38,9.00620807]
[1745605160837,9.00620807,151.44,151.41,6.6007]
[1745605161137,9.00620807,151.44,151.39,9.00620807]
[1745605161544,9.00620807,151.44,151.42,6.6006]
[1745605161730,40.90580807,151.45,151.42,6.6006]
[1745605162832,25.3,151.45,151.41,9.00620807]
[1745605163038,9.00620807,151.47,151.41,9.00620807]
[1745605163538,15.60490807,151.47,151.44,6.5996]
[1745605164734,9.00620807,151.47,151.45,6.5992]
[1745605165040,34.30620807,151.48,151.44,9.00620807]
[1745605165233,34.30620807,151.48,151.46,6.5985]
[1745605165433,34.30620807,151.48,151.44,9.00620807]
[1745605165940,34.30620807,151.48,151.47,6.5985]
[1745605166236,9.00620807,151.48,151.47,6.5985]
[1745605168241,9.00620807,151.49,151.48,6.5978]
[1745605168841,9.00620807,151.49,151.47,6.5983]
[1745605169040,9.00620807,151.48,151.47,6.5983]
[1745605172841,9.00620807,151.48,151.46,6.5987]
[1745605173040,9.00620807,151.48,151.44,9.00620807]
[1745605174541,9.00620807,151.48,151.47,6.5985]
[1745605174842,9.00620807,151.49,151.47,6.5985]
[1745605175042,9.00620807,151.5,151.45,9.00620807]
[1745605175342,25.3,151.51,151.45,9.00620807]
[1745605175343,9.00620807,151.51,151.47,9.00620807]
[1745605176239,9.00620807,151.51,151.5,6.5972]
[1745605179448,25.26,151.54,151.53,6.5959]
[1745605179748,34.26620807,151.54,151.53,6.5959]
[1745605179944,34.26620807,151.54,151.49,9.00620807]
[1745605180143,9.00620807,151.53,151.51,6.5965]
[1745605180440,9.00620807,151.52,151.51,6.5965]
[1745605181545,9.00620807,151.52,151.5,6.5971]
[1745605181848,9.00620807,151.51,151.48,3.9519]
[1745605182049,9.00620807,151.49,151.46,6.5987]
[1745605182249,9.00620807,151.47,151.46,6.5987]
[1745605186854,15.60470807,151.47,151.45,6.5991]
[1745605187049,9.00620807,151.46,151.45,6.5991]
[1745605189352,9.00620807,151.46,151.43,6.6]
[1745605189554,9.00620807,151.44,151.4,5.9939]
[1745605189754,9.00620807,151.43,151.42,6.6007]
[1745605190366,9.00620807,151.44,151.43,6.6002]
[1745605195862,9.00620807,151.45,151.44,6.5998]
[1745605197166,9.00620807,151.46,151.45,6.5991]
[1745605200169,9.00620807,151.47,151.46,6.5988]
[1745605200466,9.00620807,151.47,151.41,9.00620807]
[1745605201170,9.00620807,151.47,151.46,6.5989]
[1745605201567,34.26620807,151.49,151.43,9.00620807]
[1745605201769,9.00620807,151.51,151.45,9.00620807]
[1745605201968,9.00620807,151.51,151.47,9.00620807]
[1745605202165,15.60290807,151.51,151.49,6.5974]
[1745605202368,9.00620807,151.51,151.49,6.5974]
[1745605203963,9.00620807,151.51,151.47,9.00620807]
[1745605204369,31.8565,151.52,151.47,9.00620807]
[1745605204569,40.86270807,151.52,151.47,9.00620807]
[1745605204973,6.5968,151.51,151.49,6.5974]
[1745605205272,34.26620807,151.52,151.49,6.5974]
[1745605205473,40.86270807,151.52,151.49,6.5974]
[1745605206673,40.86270807,151.52,151.5,6.5971]
[1745605206877,34.26620807,151.52,151.5,6.5971]
[1745605209371,25.26,151.52,151.51,6.5967]
[1745605209574,9.00620807,151.53,151.51,6.5967]
[1745605210471,9.00620807,151.53,151.52,6.5963]
[1745605210674,34.24620807,151.55,151.49,9.00620807]
[1745605210976,34.24620807,151.55,151.53,6.5957]
[1745605211677,40.84130807,151.55,151.53,6.5957]
[1745605211977,34.24620807,151.55,151.53,6.5957]
[1745605213275,34.24620807,151.55,151.47,25.24]
[1745605213478,9.00620807,151.5,151.46,9.00620807]
[1745605214169,9.00620807,151.5,151.45,5.8891]
[1745605214377,9.00620807,151.52,151.48,9.00620807]
[1745605214782,9.00620807,151.52,151.5,6.5969]
[1745605216480,15.60270807,151.52,151.49,6.5975]
[1745605216674,15.60270807,151.52,151.47,9.00620807]
[1745605216875,9.00620807,151.52,151.47,9.00620807]
[1745605217184,9.00620807,151.52,151.5,6.5969]
[1745605218287,9.00620807,151.52,151.47,9.00620807]
[1745605218688,6.5959,151.53,151.5,6.5968]
[1745605218987,9.00620807,151.52,151.5,6.5968]
[1745605219191,9.00620807,151.52,151.51,6.5967]
[1745605219692,15.60250807,151.52,151.45,5.8891]
[1745605219893,9.00620807,151.52,151.47,9.00620807]
[1745605220085,9.00620807,151.52,151.48,9.00620807]
[1745605220285,9.00620807,151.54,151.5,9.00620807]
[1745605220887,9.00620807,151.54,151.51,6.5967]
[1745605221392,15.60170807,151.54,151.51,6.5967]
[1745605221591,9.00620807,151.54,151.45,5.8891]
[1745605221791,9.00620807,151.51,151.49,6.5974]
[1745605222190,9.00620807,151.51,151.46,9.00620807]
[1745605222787,9.00620807,151.49,151.45,5.8891]
[1745605222990,9.00620807,151.48,151.45,5.8891]
[1745605223492,9.00620807,151.48,151.47,6.5984]
[1745605226503,15.60340807,151.5,151.47,6.5984]
[1745605226801,9.00620807,151.48,151.45,3.9029]
[1745605227200,9.00620807,151.48,151.46,6.5987]
[1745605227895,15.60410807,151.49,151.46,6.5987]
[1745605228303,9.00620807,151.48,151.46,6.5987]
[1745605228898,15.60460807,151.48,151.45,3.9029]
[1745605229104,15.60460807,151.48,151.43,9.00620807]
[1745605230399,15.60460807,151.48,151.45,6.5991]
[1745605231807,9.00620807,151.47,151.45,6.5991]
[1745605232405,9.00620807,151.48,151.46,6.5989]
[1745605232607,9.00620807,151.48,151.44,9.00620807]
[1745605232899,25.24,151.5,151.41,25.24]
[1745605232900,9.00620807,151.47,151.42,9.00620807]
[1745605233104,9.00620807,151.47,151.45,6.5993]
[1745605233507,15.60470807,151.47,151.44,6.5997]
[1745605233708,15.60470807,151.47,151.42,9.00620807]
[1745605234908,9.00620807,151.47,151.45,6.599]
[1745605235109,6.5982,151.48,151.45,6.599]
[1745605235406,9.00620807,151.47,151.45,6.599]
[1745605235608,9.00620807,151.47,151.46,6.5989]
[1745605236108,9.00620807,151.47,151.45,6.599]
[1745605236303,15.60440807,151.48,151.43,9.00620807]
[1745605236710,15.60440807,151.48,151.45,6.599]
[1745605237707,9.00620807,151.47,151.45,6.599]
[1745605238308,15.60470807,151.47,151.45,6.599]
[1745605238606,9.00620807,151.46,151.45,6.599]
[1745605238907,9.00620807,151.47,151.45,6.599]
[1745605239209,9.00620807,151.47,151.46,6.5989]
[1745605239407,9.00620807,151.48,151.43,9.00620807]
[1745605239602,9.00620807,151.48,151.45,6.5991]
[1745605239908,15.60430807,151.48,151.45,6.5991]
[1745605240211,9.00620807,151.48,151.45,6.5991]
[1745605241610,9.00620807,151.48,151.46,6.5988]
[1745605242306,15.60470807,151.47,151.4,4.1269]
[1745605242512,9.00620807,151.46,151.4,4.1269]
[1745605242713,9.00620807,151.47,151.42,9.00620807]
[1745605242914,9.00620807,151.47,151.45,6.5993]
[1745605244205,9.00620807,151.48,151.43,9.00620807]
[1745605244407,34.24620807,151.5,151.45,9.00620807]
[1745605245106,34.24620807,151.5,151.42,25.22]
[1745605245304,9.00620807,151.53,151.48,9.00620807]
[1745605245511,34.22620807,151.53,151.49,9.00620807]
[1745605246310,9.00620807,151.52,151.48,9.00620807]
[1745605246710,9.00620807,151.52,151.49,6.5974]
[1745605247112,34.22620807,151.53,151.48,9.00620807]
[1745605247312,25.22,151.53,151.51,6.5965]
[1745605247511,34.22620807,151.53,151.51,6.5965]
[1745605247718,34.22620807,151.53,151.49,9.00620807]
[1745605247906,34.22620807,151.53,151.5,6.5968]
[1745605248710,9.00620807,151.55,151.51,9.00620807]
[1745605248918,34.22620807,151.56,151.52,9.00620807]
[1745605250213,9.00620807,151.54,151.49,9.00620807]
[1745605250722,9.00620807,151.54,151.52,6.5961]
[1745605251517,15.60160807,151.54,151.51,6.5966]
[1745605252113,9.00620807,151.52,151.47,9.00620807]
[1745605252419,9.00620807,151.48,151.45,3.9102]
[1745605252615,9.00620807,151.49,151.45,3.9102]
[1745605253117,9.00620807,151.49,151.45,12.91640807]
[1745605253519,9.00620807,151.49,151.48,6.598]
[1745605254520,9.00620807,151.49,151.47,6.5982]
[1745605254917,9.00620807,151.49,151.48,6.598]
[1745605256822,6.5974,151.5,151.48,6.598]
[1745605257022,6.5974,151.5,151.45,12.91640807]
[1745605257023,34.22620807,151.52,151.47,9.00620807]
[1745605257219,25.22,151.52,151.49,9.00620807]
[1745605257524,15.60230807,151.53,151.5,6.5971]
[1745605257821,15.60230807,151.53,151.49,9.00620807]
[1745605258720,25.22,151.55,151.49,9.00620807]
[1745605258721,9.00620807,151.54,151.49,9.00620807]
[1745605259224,9.00620807,151.53,151.51,6.5966]
[1745605260022,9.00620807,151.53,151.52,6.5963]
[1745605260325,15.60210807,151.53,151.48,9.00620807]
[1745605260522,9.00620807,151.52,151.5,6.5969]
[1745605261725,9.00620807,151.52,151.51,6.5967]
[1745605261919,9.00620807,151.52,151.47,9.00620807]
[1745605262123,9.00620807,151.49,151.45,29.1302]
[1745605262327,9.00620807,151.48,151.45,29.1302]
[1745605262625,9.00620807,151.48,151.46,6.5989]
[1745605263328,9.00620807,151.48,151.47,6.5985]
[1745605264533,31.8169,151.51,151.45,29.1302]